fUST/lending_fUST_20241121
["ID","MTS","AMOUNT","RATE_DAILY","PERIOD"]
[342844477,1732177834137,-398.29371413,0.00021917,2]
[342844478,1732177834146,-500.0,0.00021917,2]
[342844479,1732177834156,-500.0,0.00021917,2]
[342844480,1732177834165,-500.45558429,0.00021973,2]
[342844481,1732177834174,-500.0,0.00021973,2]
[342844482,1732177834184,-312.9223605,0.00021998,2]
[342844483,1732177834194,-300.0,0.00022,10]
[342844484,1732177834203,-477565.81082543,0.00022,15]
[342844485,1732177834213,-179.539986,0.00022,7]
[342844486,1732177834222,-179.539986,0.00022,7]
[342844487,1732177834232,-300.0,0.00022,15]
[342844488,1732177834241,-300.0,0.00022,15]
[342844489,1732177834251,-151.0,0.00022,10]
[342844490,1732177834260,-158.110725,0.00022,7]
[342844491,1732177834270,-151.679895,0.00022,7]
[342844492,1732177834280,-151.0,0.00022,7]
[342844493,1732177834290,-151.0,0.00022,7]
[342844494,1732177834300,-151.0,0.00022,7]
[342844495,1732177834309,-151.0,0.00022,7]
[342844496,1732177834320,-151.0,0.00022,7]
[342844497,1732177834331,-315.553279,0.00022,7]
[342844498,1732177834341,-315.553279,0.00022,7]
[342844499,1732177834351,-2033.478656,0.00022,7]
[342844500,1732177834363,-151.0,0.00022,7]
[342844501,1732177834373,-422.224064,0.00022,7]
[342844502,1732177834383,-422.224064,0.00022,7]
[342844503,1732177834393,-151.0,0.00022,7]
[342844504,1732177834403,-200.131392,0.00022,7]
[342844505,1732177834413,-908.069272,0.00022,7]
[342844506,1732177834423,-908.069272,0.00022,7]
[342844507,1732177834433,-223.783358,0.00022,7]
[342844508,1732177834443,-223.783358,0.00022,7]
[342844509,1732177834454,-647.279454,0.00022,7]
[342844510,1732177834465,-647.279454,0.00022,7]
[342844511,1732177834477,-649.83678,0.00022,7]
[342844512,1732177834486,-151.0,0.00022,7]
[342844513,1732177834496,-166.90921,0.00022,7]
[342844514,1732177834506,-276.266686,0.00022,7]
[342844515,1732177834516,-276.266686,0.00022,7]
[342844516,1732177834526,-276.956704,0.00022,7]
[342844517,1732177834536,-166.90921,0.00022,7]
[342844518,1732177834546,-276.956704,0.00022,7]
[342844519,1732177834556,-443.312623,0.00022,7]
[342844520,1732177834566,-443.312623,0.00022,7]
[342844521,1732177834576,-384.797399,0.00022,7]
[342844522,1732177834587,-384.797399,0.00022,7]
[342844523,1732177834596,-151.0,0.00022,7]
[342844524,1732177834606,-151.0,0.00022,7]
[342844525,1732177834615,-179.04656,0.00022,7]
[342844526,1732177834625,-307.598826,0.00022,7]
[342844527,1732177834635,-179.04656,0.00022,7]
[342844528,1732177834645,-151.0,0.00022,7]
[342844529,1732177834654,-943.767056,0.00022,7]
[342844530,1732177834665,-307.598826,0.00022,7]
[342844531,1732177834675,-168.198567,0.00022,7]
[342844532,1732177834683,-943.767056,0.00022,7]
[342844533,1732177834694,-168.198567,0.00022,7]
[342844534,1732177834703,-151.0,0.00022,7]
[342844535,1732177834712,-3887.893089,0.00022,7]
[342844536,1732177834723,-3887.893089,0.00022,7]
[342844537,1732177834733,-230.937735,0.00022,7]
[342844538,1732177834743,-151.0,0.00022,7]
[342844539,1732177834752,-230.937735,0.00022,7]
[342844540,1732177834763,-2567.817155,0.00022,7]
[342844541,1732177834773,-2567.817155,0.00022,7]
[342844542,1732177834782,-210.136401,0.00022,7]
[342844543,1732177834792,-210.136401,0.00022,7]
[342844544,1732177834801,-151.0,0.00022,7]
[342844545,1732177834810,-151.0,0.00022,7]
[342844546,1732177834819,-184.984992,0.00022,7]
[342844547,1732177834828,-184.984992,0.00022,7]
[342844548,1732177834838,-151.0,0.00022,7]
[342844549,1732177834847,-151.0,0.00022,7]
[342844550,1732177834856,-151.0,0.00022,7]
[342844551,1732177834865,-151.0,0.00022,7]
[342844552,1732177834875,-151.0,0.00022,7]
[342844553,1732177834884,-502.7829048,0.00022021,2]
[342844554,1732177834894,-151.0,0.000221,7]
[342844555,1732177834904,-292.045188,0.000221,10]
[342844556,1732177834914,-135311.39950345,0.0002215,2]
[342844557,1732177834923,-918.138396,0.0002215,7]
[342844558,1732177834933,-918.138396,0.0002215,7]
[342844559,1732177834943,-151.0,0.0002215,7]
[342844560,1732177834953,-151.0,0.0002215,7]
[342844561,1732177834963,-151.0,0.0002215,7]
[342844562,1732177834972,-151.0,0.0002215,7]
[342844563,1732177834983,-158.849998,0.0002215,7]
[342844564,1732177834992,-151.0,0.0002215,7]
[342844565,1732177835002,-213.838668,0.0002215,7]
[342844566,1732177835011,-315.553279,0.0002215,7]
[342844567,1732177835020,-315.553279,0.0002215,7]
[342844568,1732177835029,-2033.478656,0.0002215,7]
[342844569,1732177835039,-151.0,0.0002215,7]
[342844570,1732177835048,-422.224064,0.0002215,7]
[342844571,1732177835058,-422.224064,0.0002215,7]
[342844572,1732177835067,-908.069272,0.0002215,7]
[342844573,1732177835077,-908.069272,0.0002215,7]
[342844574,1732177835086,-223.783358,0.0002215,7]
[342844575,1732177835095,-223.783358,0.0002215,7]
[342844576,1732177835105,-647.279454,0.0002215,7]
[342844577,1732177835114,-647.279454,0.0002215,7]
[342844578,1732177835123,-649.83678,0.0002215,7]
[342844579,1732177835133,-151.0,0.0002215,7]
[342844580,1732177835142,-166.90921,0.0002215,7]
[342844581,1732177835151,-276.266686,0.0002215,7]
[342844582,1732177835160,-276.266686,0.0002215,7]
[342844583,1732177835170,-276.956704,0.0002215,7]
[342844584,1732177835180,-166.90921,0.0002215,7]
[342844585,1732177835189,-276.956704,0.0002215,7]
[342844586,1732177835199,-443.312623,0.0002215,7]
[342844587,1732177835210,-443.312623,0.0002215,7]
[342844588,1732177835219,-384.797399,0.0002215,7]
[342844589,1732177835232,-384.797399,0.0002215,7]
[342844590,1732177835241,-179.04656,0.0002215,7]
[342844591,1732177835251,-307.598826,0.0002215,7]
[342844592,1732177835263,-179.04656,0.0002215,7]
[342844593,1732177835273,-151.0,0.0002215,7]
[342844594,1732177835283,-943.767056,0.0002215,7]
[342844595,1732177835292,-307.598826,0.0002215,7]
[342844596,1732177835301,-168.198567,0.0002215,7]
[342844597,1732177835310,-943.767056,0.0002215,7]
[342844598,1732177835324,-168.198567,0.0002215,7]
[342844599,1732177835333,-151.0,0.0002215,7]
[342844600,1732177835342,-3887.893089,0.0002215,7]
[342844601,1732177835352,-3887.893089,0.0002215,7]
[342844602,1732177835362,-230.937735,0.0002215,7]
[342844603,1732177835372,-151.0,0.0002215,7]
[342844604,1732177835381,-230.937735,0.0002215,7]
[342844605,1732177835391,-2567.817155,0.0002215,7]
[342844606,1732177835400,-2567.817155,0.0002215,7]
[342844607,1732177835409,-210.136401,0.0002215,7]
[342844608,1732177835418,-210.136401,0.0002215,7]
[342844609,1732177835428,-151.0,0.0002215,7]
[342844610,1732177835437,-151.0,0.0002215,7]
[342844611,1732177835447,-184.984992,0.0002215,7]
[342844612,1732177835455,-184.984992,0.0002215,7]
[342844613,1732177835465,-151.0,0.0002215,7]
[342844614,1732177835475,-151.0,0.0002215,7]
[342844615,1732177835484,-151.0,0.0002215,7]
[342844616,1732177835493,-151.0,0.0002215,7]
[342844617,1732177835503,-163.62667,0.0002215,7]
[342844618,1732177835512,-419.11783091,0.00022173,2]
[342844619,1732177835521,-500.0,0.00022173,2]
[342844620,1732177835531,-500.0,0.00022173,2]
[342844621,1732177835540,-151.0,0.00022173,7]
[342844622,1732177835550,-179.539986,0.00022191,7]
[342844623,1732177835558,-179.539986,0.00022191,7]
[342844624,1732177835568,-576.04721316,0.00022191,2]
[342844625,1732177835577,-500.0,0.00022191,2]
[342844626,1732177835586,-500.0,0.00022191,2]
[342844627,1732177835595,-151.0,0.00022191,7]
[342844628,1732177835605,-500.0,0.00022191,2]
[342844629,1732177835618,-500.0,0.00022191,2]
[342844630,1732177835627,-500.0,0.00022191,2]
[342844631,1732177835637,-565.11,0.00022191,2]
[342844632,1732177835646,-864.69,0.00022191,2]
[342844633,1732177835655,-500.0,0.00022191,2]
[342844634,1732177835664,-500.0,0.00022191,2]
[342844635,1732177835674,-668.1,0.00022191,2]
[342844636,1732177835683,-908.069272,0.00022191,7]
[342844637,1732177835692,-500.0,0.00022191,2]
[342844638,1732177835701,-908.069272,0.00022191,7]
[342844639,1732177835710,-500.0,0.00022191,2]
[342844640,1732177835719,-500.0,0.00022191,2]
[342844641,1732177835729,-223.783358,0.00022191,7]
[342844642,1732177835739,-500.0,0.00022191,2]
[342844643,1732177835748,-223.783358,0.00022191,7]
[342844644,1732177835757,-200.0,0.00022191,2]
[342844645,1732177835766,-500.0,0.00022191,2]
[342844646,1732177835775,-500.0,0.00022191,2]
[342844647,1732177835784,-647.279454,0.00022191,7]
[342844648,1732177835867,-500.0,0.00022191,2]
[342844649,1732177835877,-647.279454,0.00022191,7]
[342844650,1732177835888,-649.83678,0.00022191,7]
[342844651,1732177835898,-500.0,0.00022191,2]
[342844652,1732177835907,-183.12398165,0.00022191,2]
[342844653,1732177835917,-500.0,0.00022191,2]
[342844654,1732177835926,-157.069833,0.00022191,7]
[342844655,1732177835935,-500.0,0.00022191,2]
[342844656,1732177835944,-500.0,0.00022191,2]
[342844657,1732177835954,-500.0,0.00022191,2]
[342844658,1732177835963,-500.0,0.00022191,2]
[342844659,1732177835974,-500.0,0.00022191,2]
[342844660,1732177835983,-1483.52,0.00022191,2]
[342844661,1732177835992,-500.0,0.00022191,2]
[342844662,1732177836001,-608.31,0.00022191,2]
[342844663,1732177836010,-166.90921,0.00022191,7]
[342844664,1732177836019,-276.266686,0.00022191,7]
[342844665,1732177836028,-276.266686,0.00022191,7]
[342844666,1732177836037,-276.956704,0.00022191,7]
[342844667,1732177836047,-166.90921,0.00022191,7]
[342844668,1732177836056,-276.956704,0.00022191,7]
[342844669,1732177836065,-443.312623,0.00022191,7]
[342844670,1732177836075,-443.312623,0.00022191,7]
[342844671,1732177836084,-500.0,0.00022191,2]
[342844672,1732177836093,-384.797399,0.00022191,7]
[342844673,1732177836102,-384.797399,0.00022191,7]
[342844674,1732177836113,-500.0,0.00022191,2]
[342844675,1732177836122,-500.0,0.00022191,2]
[342844676,1732177836132,-588.93,0.00022191,2]
[342844677,1732177836141,-500.0,0.00022191,2]
[342844678,1732177836150,-534.68,0.00022191,2]
[342844679,1732177836159,-500.0,0.00022191,2]
[342844680,1732177836168,-771.04,0.00022191,2]
[342844681,1732177836178,-500.0,0.00022191,2]
[342844682,1732177836190,-623.4,0.00022191,2]
[342844683,1732177836200,-1412.36,0.00022191,2]
[342844684,1732177836209,-500.0,0.00022191,2]
[342844685,1732177836218,-500.0,0.00022191,2]
[342844686,1732177836229,-500.0,0.00022191,2]
[342844687,1732177836238,-500.0,0.00022191,2]
[342844688,1732177836247,-500.0,0.00022191,2]
[342844689,1732177836256,-179.04656,0.00022191,7]
[342844690,1732177836265,-500.0,0.00022191,2]
[342844691,1732177836273,-500.0,0.00022191,2]
[342844692,1732177836282,-500.0,0.00022191,2]
[342844693,1732177836292,-307.598826,0.00022191,7]
[342844694,1732177836301,-179.04656,0.00022191,7]
[342844695,1732177836311,-151.0,0.00022191,7]
[342844696,1732177836323,-500.0,0.00022191,2]
[342844697,1732177836334,-500.0,0.00022191,2]
[342844698,1732177836343,-943.767056,0.00022191,7]
[342844699,1732177836352,-307.598826,0.00022191,7]
[342844700,1732177836362,-943.767056,0.00022191,7]
[342844701,1732177836372,-168.198567,0.00022191,7]
[342844702,1732177836382,-500.0,0.00022191,2]
[342844703,1732177836391,-168.198567,0.00022191,7]
[342844704,1732177836403,-151.0,0.00022191,7]
[342844705,1732177836413,-500.0,0.00022191,2]
[342844706,1732177836422,-500.0,0.00022191,2]
[342844707,1732177836431,-500.0,0.00022191,2]
[342844708,1732177836442,-500.0,0.00022191,2]
[342844709,1732177836451,-500.0,0.00022191,2]
[342844710,1732177836461,-500.0,0.00022191,2]
[342844711,1732177836470,-500.0,0.00022191,2]
[342844712,1732177836480,-3887.893089,0.00022191,7]
[342844713,1732177836490,-3887.893089,0.00022191,7]
[342844714,1732177836499,-500.0,0.00022191,2]
[342844715,1732177836509,-5531.43,0.00022191,2]
[342844716,1732177836518,-230.937735,0.00022191,7]
[342844717,1732177836527,-500.0,0.00022191,2]
[342844718,1732177836537,-500.0,0.00022191,2]
[342844719,1732177836546,-500.0,0.00022191,2]
[342844720,1732177836555,-500.0,0.00022191,2]
[342844721,1732177836564,-151.0,0.00022191,7]
[342844722,1732177836574,-463.52295621,0.00022191,2]
[342844723,1732177836584,-230.937735,0.00022191,7]
[342844724,1732177836593,-2751.1,0.00022191,2]
[342844725,1732177836603,-531.29577945,0.00022191,2]
[342844726,1732177836612,-500.0,0.00022191,2]
[342844727,1732177836621,-2170.08,0.00022191,2]
[342844728,1732177836630,-2567.817155,0.00022191,7]
[342844729,1732177836639,-2567.817155,0.00022191,7]
[342844730,1732177836649,-210.136401,0.00022191,7]
[342844731,1732177836659,-1418.72,0.00022191,2]
[342844732,1732177836669,-500.0,0.00022191,2]
[342844733,1732177836679,-647.02,0.00022191,2]
[342844734,1732177836688,-210.136401,0.00022191,7]
[342844735,1732177836697,-500.0,0.00022191,2]
[342844736,1732177836707,-500.0,0.00022191,2]
[342844737,1732177836716,-731.03,0.00022191,2]
[342844738,1732177836726,-11336.17,0.00022191,2]
[342844739,1732177836735,-408.73994662,0.00022191,2]
[342844740,1732177836744,-779.92,0.00022191,2]
[342844741,1732177836754,-500.0,0.00022191,2]
[342844742,1732177836763,-151.0,0.00022191,7]
[342844743,1732177836773,-500.0,0.00022191,2]
[342844744,1732177836782,-1967.33,0.00022191,2]
[342844745,1732177836791,-500.0,0.00022191,2]
[342844746,1732177836801,-500.0,0.00022191,2]
[342844747,1732177836810,-184.984992,0.00022191,7]
[342844748,1732177836819,-500.0,0.00022191,2]
[342844749,1732177836829,-500.0,0.00022191,2]
[342844750,1732177836838,-184.984992,0.00022191,7]
[342844751,1732177836848,-1056.93,0.00022191,2]
[342844752,1732177836857,-151.0,0.00022191,7]
[342844753,1732177836866,-150.39171477,0.00022191,2]
[342844754,1732177836876,-150.41177032,0.00022191,2]
[342844755,1732177836885,-267.19885808,0.00022191,2]
[342844756,1732177836895,-151.0,0.00022191,7]
[342844757,1732177836904,-500.0,0.00022191,2]
[342844758,1732177836913,-500.0,0.00022191,2]
[342844759,1732177836922,-150.35082098,0.00022191,2]
[342844760,1732177836931,-2382.97,0.00022191,2]
[342844761,1732177836941,-196.97201257,0.00022191,2]
[342844762,1732177836950,-299.63949024,0.00022191,2]
[342844763,1732177836960,-500.0,0.00022191,2]
[342844764,1732177836970,-950.21,0.00022191,2]
[342844765,1732177836982,-527.99,0.00022191,2]
[342844766,1732177836992,-227.32,0.00022191,2]
[342844767,1732177837001,-568.87375775,0.00022191,2]
[342844768,1732177837010,-520.71,0.00022191,2]
[342844769,1732177837019,-151.0,0.00022191,7]
[342844770,1732177837029,-635.7,0.00022191,2]
[342844771,1732177837038,-500.0,0.00022191,2]
[342844772,1732177837047,-500.0,0.00022191,2]
[342844773,1732177837056,-500.0,0.00022191,2]
[342844774,1732177837065,-151.0,0.00022191,7]
[342844775,1732177837074,-500.0,0.00022191,2]
[342844776,1732177837084,-500.0,0.00022191,2]
[342844777,1732177837102,-500.0,0.00022191,2]
[342844778,1732177837114,-553.47,0.00022191,2]
[342844779,1732177837125,-500.0,0.00022191,2]
[342844780,1732177837135,-500.0,0.00022191,2]
[342844781,1732177837145,-500.0,0.00022191,2]
[342844782,1732177837154,-151.0,0.00022209,7]
[342844783,1732177837164,-151.0,0.00022209,7]
[342844784,1732177837173,-315.553279,0.00022209,7]
[342844785,1732177837183,-315.553279,0.00022209,7]
[342844787,1732177837192,-422.224064,0.00022358,7]
[342844788,1732177837202,-422.224064,0.00022358,7]
[342844789,1732177837211,-151.0,0.0002238,7]
[342844790,1732177837220,-151.0,0.0002238,7]
[342844791,1732177837230,-151.0,0.0002238,7]
[342844793,1732177837244,-2033.478656,0.0002238,7]
[342844794,1732177837254,-2033.478656,0.0002238,7]
[342844796,1732177837263,-800.57596042,0.00022465,2]
[342844798,1732177837273,-151.01624345,0.00022465,2]
[342844800,1732177837282,-749.64,0.00022465,2]
[342844801,1732177837291,-500.0,0.00022465,2]
[342844802,1732177837300,-150.29638089,0.00022465,2]
[342844803,1732177837309,-179.539986,0.00022465,7]
[342844804,1732177837323,-179.539986,0.00022465,7]
[342844805,1732177837335,-151.0,0.00022465,7]
[342844806,1732177837344,-918.138396,0.00022465,7]
[342844807,1732177837353,-918.138396,0.00022465,7]
[342844808,1732177837363,-500.0,0.00022465,2]
[342844809,1732177837373,-500.0,0.00022465,2]
[342844810,1732177837383,-649.91386658,0.00022465,2]
[342844811,1732177837394,-500.0,0.00022465,2]
[342844812,1732177837404,-500.0,0.00022465,2]
[342844813,1732177837413,-565.11,0.00022465,2]
[342844814,1732177837422,-864.69,0.00022465,2]
[342844815,1732177837432,-500.0,0.00022465,2]
[342844816,1732177837442,-500.0,0.00022465,2]
[342844817,1732177837451,-668.1,0.00022465,2]
[342844818,1732177837461,-908.069272,0.00022465,7]
[342844819,1732177837471,-500.0,0.00022465,2]
[342844820,1732177837481,-908.069272,0.00022465,7]
[342844821,1732177837491,-500.0,0.00022465,2]
[342844822,1732177837501,-500.0,0.00022465,2]
[342844823,1732177837510,-223.783358,0.00022465,7]
[342844824,1732177837520,-500.0,0.00022465,2]
[342844825,1732177837529,-223.783358,0.00022465,7]
[342844826,1732177837539,-200.0,0.00022465,2]
[342844827,1732177837548,-500.0,0.00022465,2]
[342844828,1732177837653,-500.0,0.00022465,2]
[342844829,1732177837671,-647.279454,0.00022465,7]
[342844830,1732177837681,-500.0,0.00022465,2]
[342844831,1732177837690,-647.279454,0.00022465,7]
[342844832,1732177837700,-500.0,0.00022465,2]
[342844833,1732177837709,-649.83678,0.00022465,7]
[342844834,1732177837719,-500.0,0.00022465,2]
[342844835,1732177837730,-500.0,0.00022465,2]
[342844836,1732177837739,-500.0,0.00022465,2]
[342844837,1732177837749,-500.0,0.00022465,2]
[342844838,1732177837759,-500.0,0.00022465,2]
[342844839,1732177837769,-500.0,0.00022465,2]
[342844840,1732177837779,-1483.52,0.00022465,2]
[342844841,1732177837788,-500.0,0.00022465,2]
[342844842,1732177837798,-166.90921,0.00022465,7]
[342844843,1732177837807,-276.266686,0.00022465,7]
[342844844,1732177837817,-276.266686,0.00022465,7]
[342844845,1732177837826,-276.956704,0.00022465,7]
[342844846,1732177837835,-166.90921,0.00022465,7]
[342844847,1732177837844,-276.956704,0.00022465,7]
[342844848,1732177837854,-443.312623,0.00022465,7]
[342844849,1732177837864,-443.312623,0.00022465,7]
[342844850,1732177837873,-500.0,0.00022465,2]
[342844851,1732177837883,-384.797399,0.00022465,7]
[342844852,1732177837892,-384.797399,0.00022465,7]
[342844853,1732177837901,-500.0,0.00022465,2]
[342844854,1732177837911,-500.0,0.00022465,2]
[342844855,1732177837921,-588.93,0.00022465,2]
[342844856,1732177837930,-534.68,0.00022465,2]
[342844857,1732177837939,-500.0,0.00022465,2]
[342844858,1732177837949,-500.0,0.00022465,2]
[342844859,1732177837958,-771.04,0.00022465,2]
[342844860,1732177837968,-500.0,0.00022465,2]
[342844861,1732177837980,-623.4,0.00022465,2]
[342844862,1732177837989,-1412.36,0.00022465,2]
[342844863,1732177837998,-500.0,0.00022465,2]
[342844864,1732177838007,-500.0,0.00022465,2]
[342844866,1732177838017,-500.0,0.00022465,2]
[342844867,1732177838026,-500.0,0.00022465,2]
[342844868,1732177838036,-500.0,0.00022465,2]
[342844869,1732177838045,-179.04656,0.00022465,7]
[342844870,1732177838054,-500.0,0.00022465,2]
[342844871,1732177838064,-500.0,0.00022465,2]
[342844872,1732177838073,-500.0,0.00022465,2]
[342844873,1732177838083,-307.598826,0.00022465,7]
[342844874,1732177838092,-179.04656,0.00022465,7]
[342844875,1732177838102,-500.0,0.00022465,2]
[342844876,1732177838111,-500.0,0.00022465,2]
[342844877,1732177838121,-943.767056,0.00022465,7]
[342844878,1732177838130,-307.598826,0.00022465,7]
[342844879,1732177838139,-943.767056,0.00022465,7]
[342844880,1732177838148,-168.198567,0.00022465,7]
[342844881,1732177838158,-168.198567,0.00022465,7]
[342844882,1732177838167,-151.0,0.00022465,7]
[342844883,1732177838177,-500.0,0.00022465,2]
[342844884,1732177838186,-500.0,0.00022465,2]
[342844885,1732177838196,-500.0,0.00022465,2]
[342844886,1732177838205,-500.0,0.00022465,2]
[342844887,1732177838214,-500.0,0.00022465,2]
[342844888,1732177838226,-500.0,0.00022465,2]
[342844889,1732177838236,-500.0,0.00022465,2]
[342844890,1732177838246,-3887.893089,0.00022465,7]
[342844891,1732177838257,-3887.893089,0.00022465,7]
[342844892,1732177838267,-500.0,0.00022465,2]
[342844893,1732177838276,-5531.43,0.00022465,2]
[342844894,1732177838286,-230.937735,0.00022465,7]
[342844895,1732177838295,-500.0,0.00022465,2]
[342844896,1732177838305,-500.0,0.00022465,2]
[342844897,1732177838314,-500.0,0.00022465,2]
[342844898,1732177838327,-500.0,0.00022465,2]
[342844899,1732177838336,-151.0,0.00022465,7]
[342844900,1732177838345,-230.937735,0.00022465,7]
[342844901,1732177838354,-2751.1,0.00022465,2]
[342844902,1732177838366,-500.0,0.00022465,2]
[342844903,1732177838375,-2170.08,0.00022465,2]
[342844904,1732177838384,-2567.817155,0.00022465,7]
[342844905,1732177838394,-2567.817155,0.00022465,7]
[342844906,1732177838406,-210.136401,0.00022465,7]
[342844907,1732177838416,-1418.72,0.00022465,2]
[342844908,1732177838427,-647.02,0.00022465,2]
[342844909,1732177838436,-210.136401,0.00022465,7]
[342844910,1732177838446,-415.60337903,0.00022465,2]
[342844911,1732177838456,-500.0,0.00022465,2]
[342844912,1732177838465,-500.0,0.00022465,2]
[342844913,1732177838477,-731.03,0.00022465,2]
[342844914,1732177838490,-11336.17,0.00022465,2]
[342844915,1732177838500,-779.92,0.00022465,2]
[342844916,1732177838509,-500.0,0.00022465,2]
[342844917,1732177838519,-151.0,0.00022465,7]
[342844918,1732177838528,-500.0,0.00022465,2]
[342844919,1732177838538,-1967.33,0.00022465,2]
[342844920,1732177838547,-500.0,0.00022465,2]
[342844921,1732177838556,-500.0,0.00022465,2]
[342844923,1732177838565,-184.984992,0.00022465,7]
[342844924,1732177838575,-500.0,0.00022465,2]
[342844925,1732177838583,-500.0,0.00022465,2]
[342844926,1732177838593,-184.984992,0.00022465,7]
[342844927,1732177838602,-1056.93,0.00022465,2]
[342844928,1732177838611,-151.0,0.00022465,7]
[342844929,1732177838621,-151.0,0.00022465,7]
[342844930,1732177838630,-500.0,0.00022465,2]
[342844931,1732177838640,-2382.97,0.00022465,2]
[342844932,1732177838650,-527.99,0.00022465,2]
[342844933,1732177838659,-520.71,0.00022465,2]
[342844934,1732177838669,-191.643403,0.00022465,7]
[342844935,1732177838679,-635.7,0.00022465,2]
[342844936,1732177838688,-500.0,0.00022465,2]
[342844937,1732177838697,-500.0,0.00022465,2]
[342844938,1732177838706,-500.0,0.00022465,2]
[342844939,1732177838716,-151.0,0.00022465,7]
[342844940,1732177838726,-500.0,0.00022465,2]
[342844941,1732177838736,-500.0,0.00022465,2]
[342844942,1732177838745,-500.0,0.00022465,2]
[342844943,1732177838754,-553.47,0.00022465,2]
[342844944,1732177838764,-500.0,0.00022465,2]
[342844945,1732177838773,-500.0,0.00022465,2]
[342844946,1732177838783,-500.0,0.00022465,2]
[342844947,1732177838791,-151.0,0.00022701,7]
[342844948,1732177838801,-1000.0,0.00022721,2]
[342844949,1732177838811,-201.00787687,0.00022739,2]
[342844950,1732177838820,-200.73107942,0.00022739,2]
[342844951,1732177838829,-150.39251593,0.00022739,2]
[342844952,1732177838838,-954.05898818,0.00022739,2]
[342844953,1732177838847,-200.26,0.00022739,2]
[342844954,1732177838857,-151.0,0.00022739,7]
[342844955,1732177838867,-151.0,0.00022739,7]
[342844956,1732177838877,-151.0,0.00022739,7]
[342844957,1732177838886,-179.539986,0.00022739,7]
[342844958,1732177838895,-179.539986,0.00022739,7]
[342844959,1732177838904,-151.0,0.00022739,7]
[342844960,1732177838913,-151.0,0.00022739,7]
[342844961,1732177838922,-151.0,0.00022739,7]
[342844962,1732177838932,-151.0,0.00022739,7]
[342844963,1732177838941,-151.0,0.00022739,7]
[342844964,1732177838950,-151.0,0.00022739,7]
[342844965,1732177838960,-151.0,0.00022739,7]
[342844966,1732177838971,-221.775234,0.00022739,7]
[342844967,1732177838986,-151.0,0.00022739,7]
[342844968,1732177838996,-270.953556,0.00022739,7]
[342844969,1732177839005,-151.0,0.00022739,7]
[342844970,1732177839014,-151.0,0.00022739,7]
[342844971,1732177839024,-918.138396,0.00022739,7]
[342844972,1732177839033,-918.138396,0.00022739,7]
[342844973,1732177839043,-151.0,0.00022739,7]
[342844974,1732177839052,-151.0,0.00022739,7]
[342844975,1732177839061,-151.0,0.00022739,7]
[342844976,1732177839071,-151.0,0.00022739,7]
[342844977,1732177839079,-151.0,0.00022739,7]
[342844978,1732177839088,-350.37,0.00022739,2]
[342844979,1732177839098,-315.553279,0.00022739,7]
[342844980,1732177839107,-315.553279,0.00022739,7]
[342844981,1732177839116,-2033.478656,0.00022739,7]
[342844982,1732177839125,-2033.478656,0.00022739,7]
[342844983,1732177839134,-500.0,0.00022739,2]